bitfinex/quotes_ETHUSD_20240709
["timestamp","ask_amount","ask_price","bid_price","bid_amount"]
[1720505733960,1.41602436,3082.9,3082.6,3.24399]
[1720505734349,1.01963165,3083.1,3082.6,3.24399]
[1720505734551,2.5398321,3083.0,3082.6,3.24399]
[1720505734755,1.01963165,3083.0,3082.4,3.24414]
[1720505735002,1.41603981,3082.9,3082.4,3.24414]
[1720505735651,1.41603981,3082.9,3082.6,3.244]
[1720505736452,1.41603981,3082.9,3082.8,3.2438]
[1720505736692,1.35952783,3083.2,3082.0,2.384]
[1720505736693,1.01964587,3083.2,3083.1,3.24348]
[1720505736901,3.559313,3083.2,3083.1,3.24348]
[1720505737605,1.01964587,3083.2,3082.9,3.24362]
[1720505737899,1.41592248,3083.1,3083.0,3.24359]
[1720505738190,1.41592248,3083.1,3082.7,3.24384]
[1720505738428,2.43556212,3083.1,3082.7,3.24384]
[1720505738685,1.41592248,3083.0,3082.8,3.24378]
[1720505739093,1.01963964,3083.2,3082.8,3.24378]
[1720505739251,1.41598571,3083.1,3082.8,3.24378]
[1720505740696,1.01963964,3083.2,3082.8,3.24378]
[1720505741097,2.53972049,3083.1,3082.8,3.24378]
[1720505741257,1.01963964,3083.2,3082.8,3.24378]
[1720505741457,2.53973202,3083.1,3082.8,3.24378]
[1720505741775,1.01963964,3083.2,3082.8,3.24378]
[1720505741960,2.53971151,3083.1,3082.9,3.24368]
[1720505742171,1.12376622,3083.0,3082.7,3.24383]
[1720505742375,1.12376622,3082.9,3082.7,3.24383]
[1720505742574,1.12376622,3083.0,3082.7,3.24383]
[1720505742810,1.12376622,3083.0,3082.8,3.24376]
[1720505743016,1.12376622,3083.0,3082.9,3.24369]
[1720505743318,1.12376622,3083.1,3082.9,3.24369]
[1720505743477,1.12376622,3083.0,3082.9,3.24369]
[1720505743673,1.12376622,3083.2,3083.0,3.24352]
[1720505744020,1.01963964,3083.3,3083.0,3.24352]
[1720505744215,1.12374669,3083.1,3083.0,3.24352]
[1720505744525,1.01930102,3083.3,3083.0,3.24352]
[1720505744673,2.53966751,3083.2,3083.0,3.24352]
[1720505744871,1.12374708,3083.1,3083.0,3.24352]
[1720505745811,1.12374708,3083.1,3083.0,8.8078787]
[1720505746010,7.1574969,3083.5,3083.4,6.48634]
[1720505746011,5.79842887,3083.5,3083.4,6.48634]
[1720505746726,5.79842887,3083.5,3083.4,9.72951]
[1720505747412,19.77,3084.7,3083.8,6.4855]
[1720505747413,5.79842887,3083.9,3083.8,6.4855]
[1720505747802,6.81623082,3085.0,3084.6,3.24186]
[1720505748008,1.35706926,3085.1,3084.6,3.24186]
[1720505748009,1.12318338,3084.9,3084.6,3.24186]
[1720505748209,3.37920195,3085.3,3084.6,3.24186]
[1720505748410,1.12308151,3085.2,3084.7,3.24178]
[1720505748580,1.12308151,3085.1,3084.7,3.24178]
[1720505748920,0.3379202,3085.2,3084.7,3.24178]
[1720505749215,0.3379202,3085.2,3084.6,3.24186]
[1720505749724,0.3379202,3085.2,3084.4,3.2421]
[1720505750027,1.42702562,3085.1,3084.5,3.24201]
[1720505750323,1.12316381,3085.0,3084.3,3.24222]
[1720505750483,0.30386804,3085.1,3084.4,3.2421]
[1720505750895,1.12317992,3085.0,3083.9,3.24262]
[1720505751133,1.952,3084.8,3083.3,2.4948]
[1720505751279,1.12317992,3084.7,3083.9,3.24263]
[1720505751483,1.12317992,3084.7,3083.7,3.24284]
[1720505751484,0.30751799,3084.6,3084.0,3.24253]
[1720505752206,1.952,3084.9,3084.0,3.24253]
[1720505752412,1.12333529,3084.8,3083.8,3.24269]
[1720505752586,1.12333529,3084.7,3083.8,3.24269]
[1720505752795,0.22466706,3084.6,3083.8,3.24269]
[1720505753000,0.22466706,3084.6,3083.3,2.4948]
[1720505753001,0.22466706,3084.6,3083.9,3.24264]
[1720505753297,1.952,3084.9,3083.3,2.4948]
[1720505753298,4.952,3084.9,3083.8,3.24275]
[1720505753609,1.64686999,3085.1,3083.8,3.24275]
[1720505753610,2.3239,3084.7,3083.8,3.24275]
[1720505753788,1.12334418,3084.6,3083.8,3.24275]
[1720505753987,1.952,3084.5,3083.3,3.24321]
[1720505754304,1.12338934,3084.4,3083.5,3.24299]
[1720505754498,2.29672442,3084.5,3083.5,3.24299]
[1720505754499,1.12338934,3084.3,3083.5,3.24299]
[1720505754830,2.29672442,3084.5,3083.5,3.24299]
[1720505754831,8.09515329,3084.5,3083.5,3.24299]
[1720505755030,4.93296529,3084.4,3083.5,3.24299]
[1720505755188,1.12344996,3084.3,3083.5,3.24299]
[1720505756822,3.80951533,3084.4,3083.2,3.24337]
[1720505756823,4.3357,3084.2,3083.2,3.24337]
[1720505756983,1.1235237,3084.1,3083.2,3.24337]
[1720505757192,1.1235237,3084.1,3083.1,3.24346]
[1720505757397,1.1235237,3084.1,3083.2,3.24337]
[1720505757719,1.89001978,3084.1,3083.2,3.24337]
[1720505758029,1.1235237,3084.0,3083.2,3.24337]
[1720505758240,2.53926514,3084.0,3083.2,3.24337]
[1720505758397,1.1235237,3083.9,3083.2,3.24337]
[1720505758727,1.1235237,3083.8,3082.8,3.24378]
[1720505758940,1.1235237,3083.9,3082.9,3.24369]
[1720505759096,2.53937811,3083.8,3082.9,3.24369]
[1720505759297,2.53937811,3083.7,3082.9,3.24369]
[1720505759497,1.1235237,3083.6,3083.0,3.24357]
[1720505759697,1.1235237,3083.8,3083.0,3.24357]
[1720505759897,1.23375487,3083.8,3083.0,3.24357]
[1720505760141,1.12370243,3083.7,3083.0,3.24357]
[1720505760311,1.12370243,3083.6,3083.0,3.24357]
[1720505760518,1.12370243,3083.6,3082.3,7.93956]
[1720505760519,3.0,3083.8,3083.4,3.24309]
[1720505760702,3.0,3083.9,3083.4,3.24309]
[1720505760899,0.87984289,3083.8,3083.1,3.24338]
[1720505761102,3.0,3083.9,3083.1,3.24338]
[1720505761298,1.12362294,3083.8,3082.9,3.2436]
[1720505761734,1.41587096,3083.7,3082.9,3.2436]
[1720505761922,1.37757233,3083.6,3082.9,3.2436]
[1720505762121,0.25394939,3083.6,3082.9,3.2436]
[1720505762335,4.01527025,3083.9,3082.9,3.2436]
[1720505762503,4.3748,3083.7,3082.3,3.24425]
[1720505762854,4.3748,3083.7,3082.2,3.24443]
[1720505762855,1.952,3083.5,3082.2,3.24443]
[1720505763153,1.952,3083.3,3081.5,3.24509]
[1720505763302,1.952,3082.9,3081.5,3.24509]
[1720505763510,4.78933149,3082.8,3081.5,3.24509]
[1720505763744,4.78933149,3082.8,3081.4,3.24527]
[1720505763745,8.50953075,3082.7,3081.4,3.24527]
[1720505763954,8.50953075,3082.7,3080.2,0.67502868]
[1720505763955,4.4097,3082.5,3080.9,2.3191]
[1720505764104,8.18217398,3082.4,3080.9,5.56487]
[1720505764446,3.55753075,3082.3,3081.3,3.24537]
[1720505764651,5.74872308,3082.4,3081.0,3.24567]
[1720505764652,5.54042046,3082.2,3081.0,3.24567]
[1720505764804,1.12407985,3082.1,3081.2,3.24541]
[1720505765155,1.12407985,3082.2,3081.2,3.24541]
[1720505765313,1.12427927,3082.0,3081.0,3.24567]
[1720505765505,0.32464471,3082.1,3081.1,3.24559]
[1720505766032,0.33246447,3082.0,3081.1,3.24559]
[1720505766236,0.33246447,3082.0,3081.3,3.24537]
[1720505766417,0.32464471,3082.1,3081.3,3.24537]
[1720505767551,0.32464471,3082.1,3081.1,3.24553]
[1720505767749,2.27664471,3082.1,3081.0,3.24567]
[1720505768051,1.952,3082.0,3080.7,3.246]
[1720505768230,2.47966447,3082.0,3080.6,3.24611]
[1720505768548,5.47966447,3082.0,3080.9,3.24578]
[1720505768749,2.53243092,3081.9,3080.9,3.24578]
[1720505768905,3.0,3081.8,3080.9,3.24578]
[1720505769505,3.0,3081.8,3081.3,3.24536]
[1720505769761,0.32464471,3082.1,3081.6,3.24498]
[1720505769762,5.79842887,3082.1,3081.6,3.24498]
[1720505770071,12.46,3082.4,3081.6,3.24498]
[1720505770072,18.25842887,3082.4,3081.6,3.24498]
[1720505770200,2.22061289,3082.3,3081.3,3.24538]
[1720505770404,2.22061289,3082.3,3080.9,3.24577]
[1720505770405,1.952,3082.2,3080.9,3.24577]
[1720505770607,2.36926129,3082.1,3080.9,3.24579]
[1720505770829,1.952,3082.1,3080.9,3.24579]
[1720505771405,3.0,3082.2,3081.4,3.24526]
[1720505771605,5.22061289,3082.3,3081.4,3.24526]
[1720505772247,5.22061289,3082.3,3081.3,3.2453]
[1720505772467,5.22061289,3082.3,3081.1,3.24558]
[1720505772468,1.952,3082.2,3081.1,3.24558]
[1720505772637,2.66926129,3082.1,3081.1,3.24558]
[1720505772832,3.0,3082.0,3081.1,3.24558]
[1720505773441,3.0,3082.0,3081.2,0.06490846]
[1720505773741,3.0,3082.3,3081.6,3.24503]
[1720505774063,4.27461289,3082.3,3081.6,3.24503]
[1720505776131,4.27461289,3082.3,3081.7,3.24491]
[1720505776333,3.0,3082.3,3081.7,3.24491]
[1720505776564,3.0,3082.3,3081.6,3.24503]
[1720505776565,3.0,3082.3,3081.4,3.24524]
[1720505776765,3.0,3082.3,3081.6,3.24499]
[1720505777272,3.0,3082.3,3081.4,3.2452]
[1720505777445,3.0,3082.3,3081.5,3.2451]
[1720505777647,3.0,3082.3,3081.6,3.24505]
[1720505777846,0.87984289,3082.2,3081.2,3.24541]
[1720505778165,5.83284289,3082.2,3081.1,3.24559]
[1720505778941,5.83284289,3082.2,3081.2,3.24547]
[1720505779143,3.87984289,3082.2,3081.3,3.24535]
[1720505779435,0.87984289,3082.2,3081.3,3.24535]
[1720505779940,5.79842887,3082.4,3081.8,3.24475]
[1720505780143,5.79842887,3082.4,3082.1,3.24446]
[1720505780357,5.79842887,3082.4,3082.1,3.2445]
[1720505780927,5.79842887,3082.4,3081.9,3.24467]
[1720505781384,6.52727176,3082.4,3081.7,3.24492]
[1720505781876,6.52727176,3082.4,3081.3,3.24537]
[1720505782037,3.0,3082.3,3081.4,3.24526]
[1720505782233,4.09732718,3082.3,3081.4,3.24526]
[1720505782671,4.09732718,3082.3,3081.7,3.24492]
[1720505782868,6.52727176,3082.4,3081.0,2.254]
[1720505782869,5.79842887,3082.4,3081.0,2.254]
[1720505783174,5.79842887,3082.4,3081.0,2.31889025]
[1720505783341,5.79842887,3082.4,3081.7,3.24488]
[1720505783737,5.79842887,3082.4,3081.8,3.24481]
[1720505784671,5.79842887,3082.4,3082.0,3.24461]
[1720505785130,6.52727176,3082.4,3081.4,3.24526]
[1720505785337,1.12418878,3082.3,3081.5,3.24514]
[1720505785557,6.52727176,3082.4,3081.5,3.24514]
[1720505785753,1.97220912,3082.3,3081.6,3.24505]
[1720505785969,0.84802718,3082.3,3081.6,3.24505]
[1720505786268,5.79842887,3082.4,3081.7,3.24488]
[1720505786472,4.12415539,3082.3,3081.5,3.24509]
[1720505786634,1.12415539,3082.2,3081.5,3.24509]
[1720505787043,1.12415539,3082.2,3081.6,3.24505]
[1720505787275,1.12415539,3082.2,3081.7,3.24493]
[1720505787578,5.79842887,3082.4,3082.1,3.24454]
[1720505787981,5.79842887,3082.4,3082.2,3.24435]
[1720505788671,5.79842887,3082.4,3082.3,3.24433]
[1720505788879,1.49,3082.6,3082.1,3.24447]
[1720505789047,1.12400781,3082.5,3082.1,3.24447]
[1720505789378,1.12400781,3082.4,3082.1,3.24447]
[1720505789585,1.49,3082.6,3082.1,3.24447]
[1720505789734,1.12402126,3082.5,3082.2,3.24441]
[1720505790077,1.49,3082.6,3082.2,3.24441]
[1720505790078,1.12402126,3082.4,3082.2,3.24441]
[1720505790382,1.12404241,3082.3,3081.8,3.24477]
[1720505790537,1.12409816,3082.2,3081.9,3.24474]
[1720505790739,1.49,3082.6,3081.9,3.24474]
[1720505790938,1.12408084,3082.5,3081.9,3.24474]
[1720505791163,2.2878,3082.3,3081.9,3.24474]
[1720505791340,2.2878,3082.3,3081.4,3.24517]
[1720505791542,1.12420973,3082.2,3081.4,3.24517]
[1720505791776,5.2878,3082.3,3081.4,3.24517]
[1720505791777,1.12420973,3082.1,3081.4,3.24517]
[1720505791942,3.0,3082.2,3081.4,3.24517]
[1720505792143,1.12417947,3082.1,3081.5,3.24517]
[1720505792351,1.12417947,3082.0,3081.5,3.24517]
[1720505792582,3.0,3082.2,3081.6,3.24506]
[1720505792583,1.12417947,3082.1,3081.6,3.24506]
[1720505792940,1.12417947,3082.1,3081.9,3.24473]
[1720505793141,5.79842887,3082.5,3082.1,3.24452]
[1720505793142,1.12417947,3082.4,3082.1,3.24452]
[1720505793341,1.12417947,3082.3,3082.1,3.24452]
[1720505793546,1.12417947,3082.2,3082.1,3.24452]
[1720505793953,1.49,3082.6,3082.2,3.24436]
[1720505794167,1.12395179,3082.5,3082.4,3.2442]
[1720505794447,5.79842887,3082.8,3082.6,3.24394]
[1720505794673,1.12383415,3082.7,3082.6,3.24394]
[1720505797382,5.79842887,3082.8,3082.6,3.24394]
[1720505797589,1.12388612,3082.7,3082.6,3.24394]
[1720505798084,1.12388612,3082.7,3082.4,3.2442]
[1720505798085,1.12388612,3082.7,3082.4,3.24414]
[1720505798260,1.12388612,3082.6,3082.4,3.24414]
[1720505798593,18.25842887,3083.2,3082.3,3.24425]
[1720505798887,4.62534024,3083.1,3082.2,5.5801]
[1720505799179,1.1238962,3083.0,3082.5,3.2441]
[1720505799553,1.1238962,3083.1,3082.4,3.24422]
[1720505799755,1.1238962,3083.0,3082.4,3.24422]
[1720505799956,1.1238962,3083.1,3082.4,3.24422]
[1720505800172,1.41613155,3083.0,3082.4,3.24422]
[1720505800375,1.1238962,3082.9,3082.4,3.24422]
[1720505800542,5.79842887,3083.2,3082.4,3.24422]
[1720505800747,1.12391462,3082.8,3082.4,3.24422]
[1720505800948,1.12391425,3082.7,3082.2,3.24436]
[1720505801246,1.12391713,3082.6,3082.3,3.24431]
[1720505801472,1.12391462,3082.8,3082.3,3.24431]
[1720505801655,1.12391912,3082.7,3082.3,3.24431]
[1720505801864,1.12391912,3082.6,3082.3,3.24431]
[1720505802147,1.12391462,3082.8,3082.3,3.24431]
[1720505802351,1.12391344,3082.7,3082.3,3.24431]
[1720505802555,1.12391462,3082.8,3082.3,3.24431]
[1720505802755,1.12389706,3082.7,3082.3,3.24431]
[1720505802978,1.12389706,3082.6,3082.3,3.24431]
[1720505803191,1.12391462,3082.8,3082.4,3.24422]
[1720505803453,1.12388843,3082.7,3082.4,3.24422]
[1720505803664,7.75726345,3083.2,3082.4,3.24422]
[1720505803858,4.62730868,3083.1,3082.2,3.24436]
[1720505804078,2.54000831,3083.0,3082.3,3.24432]
[1720505804295,2.54000831,3082.9,3082.3,3.24431]
[1720505804459,2.54000831,3082.8,3082.3,3.24431]
[1720505804652,2.54000831,3082.7,3082.3,3.24431]
[1720505804903,1.12389713,3082.6,3082.3,3.24431]
[1720505805070,1.12389713,3082.9,3082.3,3.24431]
[1720505805256,2.53996804,3082.8,3082.4,3.24422]
[1720505805602,7.15595413,3083.2,3082.4,3.24422]
[1720505805603,2.53996804,3082.7,3082.4,3.24422]
[1720505805890,1.01814395,3083.0,3082.4,3.24422]
[1720505805891,1.1238798,3082.6,3082.4,3.24422]
[1720505806066,1.1238798,3082.9,3082.4,3.24422]
[1720505806270,1.41613127,3082.8,3082.4,3.24422]
[1720505806473,1.41613127,3082.8,3082.2,3.24436]
[1720505806474,1.1238798,3082.7,3082.2,3.24436]
[1720505806706,1.1238798,3082.7,3082.3,3.24431]
[1720505807181,1.12390522,3082.6,3082.2,3.24436]
[1720505807583,1.1239397,3082.5,3082.2,3.24436]
[1720505807810,1.01814395,3082.9,3082.2,3.24434]
[1720505807980,1.01814395,3082.9,3082.3,3.24426]
[1720505807981,2.54008189,3082.8,3082.3,3.24426]
[1720505808286,2.54008189,3082.7,3082.2,3.24434]
[1720505808468,2.54008189,3082.6,3082.2,3.24434]
[1720505808664,1.12392438,3082.5,3082.1,3.24453]
[1720505808864,1.01814395,3082.8,3082.0,3.24459]
[1720505809063,2.54016137,3082.7,3082.0,3.24459]
[1720505809270,2.54016137,3082.6,3082.0,3.22644]
[1720505809479,2.54016137,3082.5,3082.0,3.22644]
[1720505809680,2.54016137,3082.4,3081.8,3.24483]
[1720505809900,2.54028156,3082.3,3081.8,3.24483]
[1720505810131,2.54028156,3082.2,3081.7,3.24495]
[1720505810394,2.54054244,3082.1,3081.7,3.24495]
[1720505810563,2.54054244,3082.1,3081.6,3.24502]
[1720505810564,1.12413382,3082.0,3081.6,3.24502]
[1720505810765,1.35752526,3082.4,3081.2,3.24544]
[1720505810766,2.4813,3082.1,3081.2,3.24544]
[1720505810973,3.55875782,3082.0,3081.2,3.24544]
[1720505811186,3.55875782,3081.9,3081.2,3.24544]
[1720505811393,2.54061387,3081.8,3081.0,3.24562]
[1720505811557,2.54074447,3081.7,3081.0,3.24562]
[1720505811758,2.54091118,3081.6,3081.0,3.24562]
[1720505811984,1.50977226,3081.8,3080.8,3.24588]
[1720505811985,1.12429603,3081.5,3081.1,3.24558]
[1720505812188,1.01814395,3081.8,3081.3,3.24537]
[1720505812500,1.35752526,3081.9,3081.6,3.24506]
[1720505812501,1.12433598,3081.7,3081.6,3.24506]
[1720505812687,1.01814395,3082.3,3081.8,3.24481]
[1720505812855,2.54051199,3082.2,3081.8,3.24481]
[1720505813058,8.30657282,3082.4,3081.8,3.24481]
[1720505813296,2.54036256,3082.3,3081.8,3.24481]
[1720505813483,7.28842887,3082.4,3082.1,3.24454]
[1720505813665,1.49,3082.4,3082.1,3.24454]
[1720505814496,1.49,3082.4,3082.3,3.24433]
[1720505815006,1.49,3082.4,3081.6,3.30988589]
[1720505815007,6.81847522,3082.8,3082.2,3.24442]
[1720505815167,1.12388434,3082.7,3082.6,3.24401]
[1720505815687,5.79842887,3082.8,3082.7,3.2439]
[1720505816700,1.02004635,3083.2,3082.8,3.24373]
[1720505816898,2.53966605,3083.1,3082.9,3.24366]
[1720505817201,1.12373649,3083.0,3082.9,3.24366]
[1720505817506,7.15849067,3083.4,3082.9,3.24366]
[1720505817507,1.02004635,3083.3,3082.9,3.24366]
[1720505817713,2.53964098,3083.2,3082.9,3.24369]
[1720505817865,2.53964098,3083.1,3082.9,3.24369]
[1720505818184,1.83790005,3083.3,3082.9,3.24369]
[1720505818392,3.55965877,3083.2,3082.9,3.24369]
[1720505818565,2.53961242,3083.1,3082.9,3.24369]
[1720505818760,1.02004635,3083.3,3082.9,3.24369]
[1720505819098,3.55962637,3083.2,3082.7,3.2439]
[1720505819302,2.53958002,3083.1,3082.7,3.2439]
[1720505819479,1.12370797,3083.0,3082.7,3.2439]
[1720505819680,1.12370797,3083.1,3082.7,3.2439]
[1720505819879,0.8178537,3083.3,3082.9,3.24368]
[1720505819880,1.02004635,3083.3,3082.9,3.24368]
[1720505820082,2.53969034,3083.2,3083.0,3.24359]
[1720505820422,5.79842887,3083.4,3083.2,3.24331]
[1720505820615,1.12364969,3083.3,3083.2,3.24331]
[1720505820911,1.12364272,3083.3,3083.2,3.24331]
[1720505821212,1.12363442,3083.3,3083.2,3.24331]
[1720505821501,2.53947005,3083.3,3083.2,3.24331]
[1720505821714,3.47526458,3083.3,3082.9,3.24368]
[1720505821879,2.53953284,3083.2,3082.3,2.3258]
[1720505822069,1.41591767,3083.1,3082.5,3.24408]
[1720505822270,2.53976835,3083.0,3082.5,3.24408]
[1720505822469,1.12380201,3082.9,3082.5,3.2441]
[1720505822664,1.37600427,3083.1,3082.5,3.2441]
[1720505822969,2.53980093,3083.0,3082.5,3.2441]
[1720505823162,1.12380572,3082.9,3082.6,3.244]
[1720505823412,1.69973061,3083.4,3082.6,3.244]
[1720505823413,1.12380572,3083.0,3082.8,3.2438]
[1720505823705,1.02004635,3083.4,3083.1,3.24346]
[1720505824005,2.5395981,3083.3,3083.1,3.24346]
[1720505824306,2.5395981,3083.2,3083.1,3.24346]
[1720505825511,2.53959599,3083.2,3083.1,3.24346]
[1720505825868,2.53959599,3083.2,3082.9,3.24369]
[1720505826068,2.53959599,3083.1,3082.7,3.24388]
[1720505826270,2.53959599,3083.0,3082.7,3.24388]
[1720505826508,0.35594174,3083.1,3082.5,3.24411]
[1720505826683,2.53979136,3083.0,3082.5,3.24411]
[1720505826881,2.53979136,3082.9,3082.5,3.24411]
[1720505827105,1.01982144,3083.0,3082.6,3.244]
[1720505827293,2.53988952,3082.9,3082.6,3.244]
[1720505827615,2.53988952,3082.8,3082.6,3.244]
[1720505827786,1.01982144,3083.0,3082.6,3.244]
[1720505827980,2.53992372,3082.9,3082.6,3.244]
[1720505828202,0.35597452,3082.9,3082.6,3.244]
[1720505828504,2.53993176,3082.8,3082.6,3.244]
[1720505828707,1.01982144,3083.0,3082.7,3.2439]
[1720505829085,1.0201154,3083.2,3083.0,3.24359]
[1720505829307,5.79842887,3083.3,3083.0,3.24359]
[1720505829616,2.53954121,3083.2,3083.0,3.24359]
[1720505829913,1.415898,3083.1,3083.0,3.24359]
[1720505830109,5.79842887,3083.3,3083.0,3.24359]
[1720505830273,2.53955219,3083.2,3083.0,3.24359]
[1720505830473,6.81854427,3083.3,3083.0,3.24359]
[1720505830695,2.53962302,3083.2,3083.0,3.24359]
[1720505830977,5.79842887,3083.3,3083.1,3.24348]
[1720505831486,12.46,3083.9,3083.0,2.4381]
[1720505831487,8.30854427,3083.8,3083.0,2.4381]
[1720505831688,7.28842887,3083.8,3083.0,2.4381]
[1720505831887,2.53914693,3083.7,3083.3,3.24318]
[1720505832076,7.28842887,3083.8,3083.3,3.24318]
[1720505832289,1.41562702,3083.7,3083.3,3.24318]
[1720505832523,7.28842887,3083.8,3083.5,3.24305]
[1720505832678,1.01966247,3084.2,3084.0,3.24254]
[1720505832870,2.53887786,3084.1,3084.0,3.24254]
[1720505833073,7.15797883,3084.4,3083.4,4.93311]
[1720505833074,1.01966247,3084.3,3084.1,3.24241]
[1720505833285,2.53878921,3084.2,3084.1,3.24241]
[1720505833505,1.41543115,3084.2,3084.1,3.24241]
[1720505833673,6.81809134,3084.4,3084.1,3.24241]
[1720505833874,2.53877952,3084.3,3084.1,3.24241]
[1720505834087,7.49990047,3084.4,3084.1,3.24241]
[1720505834409,3.55844264,3084.3,3083.9,3.24264]
[1720505834614,1.00386806,3084.2,3083.9,3.24264]
[1720505835276,5.79842887,3084.4,3083.9,3.24264]
[1720505835509,2.53890108,3084.3,3083.9,3.24264]
[1720505835727,5.79842887,3084.4,3083.9,3.24264]
[1720505836239,1.41544244,3084.3,3083.9,3.24264]
[1720505836530,1.01966247,3084.5,3083.9,3.24264]
[1720505836718,2.53884348,3084.4,3083.9,3.24264]
[1720505836923,1.77131201,3084.3,3083.7,3.24278]
[1720505837124,1.77131201,3084.3,3083.9,3.24264]
[1720505837125,0.3558506,3084.3,3083.9,3.24264]
[1720505837320,1.01966247,3084.6,3084.0,3.24252]
[1720505837546,1.41540157,3084.5,3084.0,3.24252]
[1720505837898,4.01966247,3084.6,3084.0,3.24252]
[1720505838101,3.22058437,3084.5,3083.7,3.24281]
[1720505838319,2.53884296,3084.4,3083.8,3.24273]
[1720505838523,0.42403146,3084.3,3083.8,3.24273]
[1720505838837,1.7014716,3084.5,3083.8,3.24273]
[1720505839039,1.41549718,3084.4,3083.8,3.24273]
[1720505839331,0.68180913,3084.5,3083.9,3.24256]
[1720505839531,0.47014716,3084.4,3083.9,3.24256]
[1720505843832,1.12341163,3084.3,3083.7,3.24282]
[1720505844033,1.12342876,3084.2,3083.7,3.24282]
[1720505844220,0.47014716,3084.4,3083.7,3.24282]
[1720505844427,1.64038515,3084.3,3083.8,3.24273]
[1720505844599,1.12343808,3084.3,3083.8,3.24273]
[1720505844806,0.68180913,3084.5,3083.8,3.24273]
[1720505845038,1.12337891,3084.4,3083.8,3.24273]
[1720505845239,0.68180913,3084.5,3084.0,3.24253]
[1720505845240,1.12337891,3084.3,3084.0,3.24253]
[1720505845446,3.0,3084.6,3084.0,3.24253]
[1720505845629,1.12336209,3084.5,3084.0,3.24244]
[1720505845943,1.12336209,3084.4,3084.2,3.24232]
[1720505846154,1.92759433,3084.6,3084.2,3.24232]
[1720505847245,5.79842887,3085.1,3084.3,0.06484404]
[1720505847466,1.12315372,3085.0,3084.9,3.24159]
[1720505847744,5.79842887,3085.5,3085.1,3.24138]
[1720505848038,7.77327176,3085.5,3085.4,3.24107]
[1720505848749,5.79842887,3085.5,3085.4,3.24107]
[1720505849450,1.49,3085.7,3085.4,3.24107]
[1720505849742,5.79842887,3086.2,3086.0,3.2404]
[1720505849916,5.79842887,3086.2,3085.3,3.24107]
[1720505849917,5.79842887,3086.9,3086.1,2.3033]
[1720505850119,0.57984289,3086.8,3086.4,3.23996]
[1720505850820,0.57984289,3086.8,3086.5,3.23989]
[1720505851040,0.57984289,3086.8,3086.2,3.2402]
[1720505851226,0.33914028,3086.7,3086.1,3.24028]
[1720505851627,0.33914028,3086.7,3086.0,3.24041]
[1720505851833,0.33914028,3086.7,3085.7,5.70334]
[1720505852312,0.39189832,3086.6,3085.8,3.24057]
[1720505852642,0.39189832,3086.6,3085.7,2.4626]
[1720505852849,1.12274741,3086.5,3085.1,7.35127]
[1720505853014,0.39189832,3086.6,3085.4,3.24107]
[1720505853216,1.12277639,3086.5,3085.4,3.24107]
[1720505853429,0.39189832,3086.6,3085.6,3.24081]
[1720505853629,0.39189832,3086.6,3085.4,3.24107]
[1720505853939,1.12277301,3086.5,3085.4,3.24107]
[1720505854104,1.953,3086.5,3085.2,3.24125]
[1720505854302,2.3297,3086.3,3085.0,3.24148]
[1720505854545,1.1229032,3086.2,3085.0,3.24148]
[1720505854753,1.1229032,3086.1,3085.0,3.24148]
[1720505854903,3.0759032,3086.2,3084.8,3.24166]
[1720505855113,10.27274588,3086.1,3084.3,1.69]
[1720505855309,10.27274588,3086.1,3084.3,3.24219]
[1720505855310,1.953,3085.9,3084.3,3.24219]
[1720505855510,1.953,3085.7,3084.3,3.24219]
[1720505855708,1.953,3085.5,3084.4,3.24212]
[1720505855927,4.953,3085.5,3084.4,3.24212]
[1720505856109,1.953,3085.5,3084.4,3.24212]
[1720505856343,0.4953,3085.4,3084.4,3.24212]
[1720505856540,1.953,3085.5,3084.4,3.24212]
[1720505856838,1.1231619,3085.4,3084.5,3.242]
[1720505857016,4.953,3085.5,3084.6,3.2419]
[1720505857212,5.79842887,3085.6,3084.1,2.2996]
[1720505857440,5.79842887,3085.6,3085.1,3.24134]
[1720505857720,1.49,3085.7,3084.8,3.24167]
[1720505857927,1.49,3085.7,3084.7,1.69]
[1720505858125,1.49,3085.7,3084.5,3.24196]
[1720505858518,1.49,3085.7,3083.9,3.0]
[1720505858519,1.12306964,3085.6,3084.4,3.24211]
[1720505858838,1.5796766,3085.5,3084.1,2.2996]
[1720505859009,1.12306964,3085.4,3084.4,3.24204]
[1720505859213,0.45796766,3085.3,3084.4,3.24204]
[1720505859612,0.45796766,3085.3,3084.2,3.24226]
[1720505859810,0.45660696,3085.5,3084.3,3.24222]
[1720505860021,1.12315501,3085.4,3084.3,3.24222]
[1720505860558,1.58113491,3085.3,3084.5,3.242]
[1720505860728,0.4579762,3085.3,3084.6,3.2419]
[1720505860927,1.49,3085.7,3085.0,3.24146]
[1720505861328,1.49,3085.7,3084.8,3.24169]
[1720505861529,1.49,3085.7,3084.6,3.24188]
[1720505861530,1.12298502,3085.6,3084.6,3.24188]
[1720505861741,1.38438932,3085.5,3084.5,3.24201]
[1720505862060,1.49,3085.7,3084.5,3.24201]
[1720505862061,3.443,3085.7,3084.5,3.24201]
[1720505862213,3.443,3085.7,3084.6,3.24189]
[1720505862214,1.12305203,3085.6,3084.6,3.24189]
[1720505862419,1.38435723,3085.5,3084.7,3.24175]
[1720505862656,1.49,3085.7,3084.9,3.24158]
[1720505862858,1.49,3085.7,3084.6,3.24189]
[1720505862859,1.12298931,3085.6,3084.6,3.24189]
[1720505863063,0.56129893,3085.6,3084.6,3.24189]
[1720505863221,1.1230161,3085.5,3084.6,3.24189]
[1720505863415,1.49,3085.7,3084.6,3.24189]
[1720505863727,1.12298459,3085.6,3084.6,3.22579]
[1720505863934,1.38431603,3085.5,3084.8,3.24168]
[1720505864128,1.49,3085.7,3084.8,3.24168]
[1720505864328,3.0,3085.8,3084.6,3.22579]
[1720505864329,1.12302005,3085.6,3084.6,3.22579]
[1720505864544,1.12302005,3085.5,3084.4,3.24211]
[1720505864717,1.12302005,3085.4,3084.1,2.2996]
[1720505864920,3.02814289,3085.7,3084.1,2.2996]
[1720505864921,1.953,3085.5,3084.1,2.2996]